[Event "VIII Open Semana Santa 2024"]
[Site "San Vicente del Raspeig"]
[Date "2024.03.27"]
[Round "1.7"]
[White "Makhnev, Denis"]
[Black "Pardo Ruiz, Carlos"]
[Result "1-0"]
[ECO "A85"]
[WhiteElo "2516"]
[BlackElo "2063"]
[Annotator "TA"]
[PlyCount "83"]
[EventDate "2024.03.27"]
[EventType "swiss"]
[EventCountry "ESP"]
[SourceTitle "playchess.com"]
[Source "ChessBase"]
[SourceQuality "1"]
[TimeControl "5400+30"]

{[%evp 13,83,31,37,13,26,22,35,13,35,0,15,37,34,30,43,56,83,87,120,75,109,102,116,66,95,75,129,116,237,219,230,253,276,268,470,450,402,281,270,247,423,451,537,513,512,528,533,522,533,538,528,518,548,566,593,557,581,581,625,571,633,622,891,886,880,848,1188,1262,1768,1647,2460,1169]} 1. d4 {[%emt 0:00:03]} d5 {[%emt 0:00:20]} 2. c4 {[%emt 0:00:09]} e6 {[%emt 0:00:13]} 3. Nf3 {[%emt 0:00:06]} c6 {[%emt 0:01:04]} 4. e3 {[%emt 0:00:07]} f5 {[%emt 0:01:34]} 5. Bd3 {[%emt 0:00:47]} Nf6 {[%emt 0:00:48]} 6. Nc3 {[%emt 0:00:07]} Bd6 {[%emt 0:01:31]} 7. O-O {[%emt 0:00:09]} O-O {[%emt 0:01:03]} 8. Ne2 {[%emt 0:00:05]} b6 {[%emt 0:05:03]} 9. b3 {[%emt 0:00:22]} Bb7 {[%emt 0:01:30]} 10. Bb2 {[%emt 0:03:15] White is slightly better.} Nbd7 {[%emt 0:03:02]} 11. cxd5 {[%emt 0:12:09]} cxd5 {[%emt 0:02:53]} 12. Nf4 {[%emt 0:00:05]} Re8 {[%emt 0:02:20]} 13. Rc1 {[%emt 0:00:34]} Ne4 {[%emt 0:05:02]} 14. Ne5 {[%emt 0:00:56]} Bxe5 {[%emt 0:07:28]} 15. dxe5 {[%emt 0:00:13]} Nec5 {[%emt 0:00:14]} 16. Bb1 {[%emt 0:00:46] White is more active.} Ba6 {[%emt 0:00:36]} 17. Re1 {[%emt 0:00:55]} Rc8 {[%emt 0:04:23]} 18. f3 {[%emt 0:02:53]} (18. g4 $16) 18... Nf8 {[%emt 0:04:46]} 19. Qd4 $36 {[%emt 0:03:53][%mdl 2048] White is really pushing.} Qg5 {[%emt 0:04:14]} (19... Re7 $142) 20. Ba3 $16 {[%emt 0:01:56]} Ncd7 {[%emt 0:02:29] This costs Black the game.} (20... Qe7 $16 {might work better.} 21. Rc2 Qd7) 21. Bxf8 $18 {[%emt 0:03:58]} Nxf8 {[%emt 0:00:44]} 22. Qa4 {[%emt 0:00:17]} Bb7 {[%emt 0:03:31][%cal Od5d4]} 23. Qxa7 {[%emt 0:00:49]} Ba8 {[%emt 0:00:42]} (23... Rb8 24. Rc7 (24. Qxb6 d4 $18) 24... Ba8) 24. Rxc8 {[%emt 0:03:14]} (24. Qxb6 d4 25. Rxc8 (25. Qxd4 Bxf3 26. Rxc8 Rxc8 $18) 25... Rxc8 26. Qxd4 (26. Nxe6 Qg6 $16) 26... Bxf3 $18) 24... Rxc8 {[%emt 0:00:33]} 25. Qxb6 {[%emt 0:00:12]} d4 {[%emt 0:01:56]} 26. Qa6 {[%emt 0:03:12]} (26. Nxe6 Qg6 27. Qa6 (27. Bxf5 Qxf5 28. Nxf8 d3 $11) 27... Qxe6 28. Qxe6+ Nxe6 $11) 26... Rd8 {[%emt 0:01:40]} (26... Re8 27. Qe2 Rc8) 27. Nxe6 {[%emt 0:08:53][%cal Bf4e6,Be6c7,Bc7a6,Ba6b4][%mdl 32] White is clearly winning.} Qh6 {[%emt 0:04:16]} 28. Nc7 {[%emt 0:01:15] [#] aiming for Qxh6.} ({Less strong is} 28. exd4 Qxe6 29. Qa5 Qd7 $11) 28... Qxa6 {[%emt 0:01:39]} 29. Nxa6 {[%emt 0:00:07]} dxe3 {[%emt 0:04:14]} 30. Bxf5 {[%emt 0:00:09]} g6 {[%emt 0:00:23]} 31. Bh3 {[%emt 0:00:20]} Kf7 {[%emt 0:00:42]} 32. Rxe3 {[%emt 0:00:19]} g5 {[%emt 0:00:50]} 33. Bf5 {[%emt 0:00:07]} Bc6 {[%emt 0:01:25]} 34. Nb4 {[%emt 0:00:23]} Be8 {[%emt 0:00:53]} 35. Rc3 Rd4 {[%emt 0:00:44]} 36. Rc4 {[%emt 0:02:20]} Rd1+ {[%emt 0:00:40]} 37. Kf2 {[%emt 0:00:05]} Bb5 {[%emt 0:00:11]} 38. Rc7+ {[%emt 0:00:21]} Ke8 {[%emt 0:01:21]} 39. a4 {[%emt 0:00:21]} Bd7 {[%emt 0:00:42]} 40. Bxd7+ {[%emt 0:00:24]} Nxd7 {[%emt 0:00:08]} 41. Nc6 {[%emt 0:00:09] [#] Intending e6 and mate.} Kf7 {[%emt 0:00:45]} 42. Nb8 {[%emt 0:00:07] Weighted Error Value: White=0.17 (very precise) /Black=0.40.  Mistake:       	White=1     	Black=4      Inaccurate:     	White=3     	Black=5      OK:         	White=13    	Black=8      Best:        	White=2     	---} 1-0

[Event "VIII Open Semana Santa 2024"]
[Site "San Vicente del Raspeig"]
[Date "2024.03.27"]
[Round "1.8"]
[White "Galvan Cipriani, Viviana"]
[Black "Basso, Pier Luigi"]
[Result "0-1"]
[ECO "D10"]
[WhiteElo "2061"]
[BlackElo "2503"]
[Annotator "TA"]
[PlyCount "102"]
[EventDate "2024.03.27"]
[EventType "swiss"]
[EventCountry "ESP"]
[SourceTitle "playchess.com"]
[Source "ChessBase"]
[SourceQuality "1"]
[TimeControl "5400+30"]

{[%evp 9,102,27,19,17,11,2,19,18,31,37,28,33,38,42,50,48,35,-67,0,-20,-22,-12,-12,-8,-8,-24,0,-49,-43,-60,-66,-66,-32,-176,-26,-34,-39,-53,-31,-51,-53,-81,-73,-83,-82,-83,-58,-286,-290,-292,-283,-339,-322,-510,-500,-662,-641,-674,-685,-600,-506,-530,-567,-609,-456,-456,-450,-495,-475,-468,-478,-529,-535,-486,-488,-507,-519,-647,-636,-584,-579,-933,-933,-907,-870,-841,-812,-1350,-1335,-2036,-1793,-1892,-1675,-29988,-29989]} 1. c4 {[%emt 0:00:05]} c6 {[%emt 0:00:11]} 2. d4 {[%emt 0:00:12]} d5 {[%emt 0:00:07]} 3. cxd5 {[%emt 0:00:14]} cxd5 {[%emt 0:00:05]} 4. Bf4 {[%emt 0:00:11]} Nc6 {[%emt 0:00:12]} 5. e3 {[%emt 0:00:08]} Nf6 {[%emt 0:00:13]} 6. Bd3 {[%emt 0:00:32]} Bg4 {[%emt 0:00:56]} 7. f3 {[%emt 0:00:43]} Bd7 {[%emt 0:00:05]} 8. Nc3 {[%emt 0:06:13] The position is equal.} g6 {[%emt 0:02:07]} 9. Nge2 {[%emt 0:01:04]} Bg7 {[%emt 0:03:16]} 10. g4 {[%emt 0:07:01]} O-O {[%emt 0:00:33]} 11. h4 {[%emt 0:01:16]} Re8 {[%emt 0:00:23]} 12. Be5 {[%emt 0:09:12]} Bc8 {[%emt 0:05:45]} 13. Nf4 {[%emt 0:11:08]} (13. h5 $14) 13... e6 {[%emt 0:00:59]} ({Black should play} 13... Nxe5 $15 14. dxe5 Nd7) 14. Ng2 {[%emt 0:15:33]} Nxe5 {[%emt 0:05:17]} 15. dxe5 {[%emt 0:00:17]} Nd7 {[%emt 0:00:03]} 16. f4 {[%emt 0:00:12]} Nc5 {[%emt 0:00:33]} 17. Bc2 {[%emt 0:03:49]} b6 {[%emt 0:01:57]} 18. b4 {[%emt 0:08:40]} (18. g5 $11 {is more appropriate.}) 18... Nd7 $15 {[%emt 0:00:52]} 19. g5 {[%emt 0:04:10]} a5 {[%emt 0:03:51]} 20. b5 {[%emt 0:04:10]} Bb7 {[%emt 0:01:46][%cal Od7e5] White must now prevent ...Nxe5!} (20... Nxe5 {is more complex.} 21. fxe5 Bxe5 22. Ne2 Bxa1 23. Qxa1 Qc7) 21. Kf2 {[%emt 0:00:58] [#]} (21. O-O $15) 21... Rc8 {[%emt 0:06:03]} (21... Nxe5 $1 $19 22. fxe5 Bxe5) 22. Ne2 $1 $11 {[%emt 0:00:42]} Qe7 {[%emt 0:03:21]} 23. a3 Rc5 {[%emt 0:04:43]} 24. Nd4 {[%emt 0:08:50]} Rec8 {[%emt 0:00:06]} 25. Ra2 {[%emt 0:00:29]} Rc3 {[%emt 0:01:08] Black continues to play with concentration.} 26. a4 {[%emt 0:03:42]} Nc5 {[%emt 0:01:39]} 27. Ne1 {[%emt 0:02:30]} Bf8 {[%emt 0:00:28] Black is more active.} 28. Nef3 $2 {[%emt 0:03:42]} ({Better is} 28. Qf3 $15) 28... Ne4+ $19 {[%emt 0:00:38]} 29. Bxe4 {[%emt 0:00:53]} dxe4 {[%emt 0:00:03]} 30. Nh2 {[%emt 0:00:08]} h5 {[%emt 0:00:43] Prevents Ng4} 31. Rc2 {[%emt 0:07:24]} (31. Nc6 $142 Bxc6 32. bxc6) 31... Qa3 {[%emt 0:01:22][%csl LRa4,LRe3]} 32. Rxc3 {[%emt 0:01:36]} Rxc3 {[%emt 0:00:05]} 33. Re1 {[%emt 0:00:44]} Bc5 {[%emt 0:00:48]} 34. Nf1 {[%emt 0:00:29]} Bd5 {[%emt 0:01:00]} 35. Nc6 {[%emt 0:00:32][%cal Bd4c6,Bc6b8,Bb8a6][%mdl 32]} Kf8 {[%emt 0:01:28]} 36. Nb8 {[%emt 0:00:25]} Ke7 {[%emt 0:01:18] Prevents Nd7.} 37. Na6 {[%emt 0:00:35]} Bb3 {[%emt 0:04:41]} 38. Qa1 {[%emt 0:00:29]} Rc2+ {[%emt 0:00:08]} ({Less strong is} 38... Bxa4 39. Nxc5 Rc2+ (39... bxc5 $2 40. b6 $19) 40. Kg1 $19 (40. Kg3 $2 Ra2 $19)) 39. Kg1 {[%emt 0:00:21]} Qxa4 {[%emt 0:00:19]} 40. Nxc5 {[%emt 0:00:33]} Qxa1 {[%emt 0:00:18]} 41. Rxa1 {[%emt 0:00:11]} Rxc5 {[%emt 0:00:03][%mdl 4096] Endgame. KRB-KRN} 42. Nd2 {[%emt 0:00:22]} Bd5 {[%emt 0:00:05]} 43. Rb1 {[%emt 0:00:13]} a4 {[%emt 0:00:26] [#] Threatens to win with ...Rc2.} 44. Ra1 {[%emt 0:00:36]} Rc2 {[%emt 0:00:19]} 45. Nf1 {[%emt 0:00:11]} Ra2 {[%emt 0:01:05]} 46. Rc1 {[%emt 0:00:51]} Kd7 {[%emt 0:00:43] ...a3 would now be deadly.} 47. Ng3 {[%emt 0:00:21]} a3 {[%emt 0:00:09]} 48. Rd1 {[%emt 0:00:12]} Ke8 {[%emt 0:00:46]} 49. f5 {[%emt 0:00:29]} Rb2 {[%emt 0:00:07]} 50. fxg6 {[%emt 0:01:07]} fxg6 {[%emt 0:00:04][%cal Oa3a2] ( -> ...a2!)} (50... Rxb5 $2 {is the wrong capture.} 51. g7 (51. Nxh5 $2 fxg6 52. Nf6+ Kf7 $19) 51... Kd7 52. g8=Q $18 (52. g8=R a2 $17)) 51. Rf1 {[%emt 0:01:04]} a2 {[%emt 0:00:06] Weighted Error Value: White=0.68/Black=0.16 (very precise) .  Loses game:     	White=1     	---        Mistake:       	White=4     	Black=2      Inaccurate:     	White=2     	Black=1      OK:         	White=12    	Black=20     Best:        	White=2     	Black=1      Strong:       	White=1     	---} 0-1

[Event "VIII Open Semana Santa 2024"]
[Site "San Vicente del Raspeig"]
[Date "2024.03.27"]
[Round "1.9"]
[White "Diaz Camallonga, Carles"]
[Black "Pattnayak Nilsu"]
[Result "1-0"]
[ECO "E02"]
[WhiteElo "2491"]
[BlackElo "2061"]
[Annotator "TA"]
[PlyCount "105"]
[EventDate "2024.03.27"]
[EventType "swiss"]
[EventCountry "ESP"]
[SourceTitle "playchess.com"]
[Source "ChessBase"]
[SourceQuality "1"]
[TimeControl "5400+30"]

{[%evp 16,105,45,53,79,93,72,78,81,84,79,70,69,70,88,81,77,70,76,75,109,104,125,107,118,109,403,409,406,415,680,676,704,663,737,663,663,663,663,663,29974,29975,29974,29975,29975,29976,29965,840,916,918,914,919,981,973,981,981,1208,1396,1923,1137,1923,1801,1338,1153,29976,29975,29991,29982,29982,29983,29983,29983,29984,29985,29987,29988,29988,29988,29988,29988,29988,29986,29988,29985,29990,29991,29990,29986,29996,29990,29990,29986]} 1. d4 {[%emt 0:00:03]} Nf6 {[%emt 0:00:38]} 2. Nf3 {[%emt 0:00:08]} e6 {[%emt 0:00:09]} 3. c4 {[%emt 0:00:10]} d5 {[%emt 0:00:06]} 4. g3 {[%emt 0:00:08]} Be7 {[%emt 0:00:05]} 5. Bg2 {[%emt 0:00:11]} O-O {[%emt 0:00:08]} 6. Qc2 {[%emt 0:02:50]} dxc4 {[%emt 0:01:12]} 7. Qxc4 {[%emt 0:01:34]} Nbd7 {[%emt 0:05:41]} 8. O-O {[%emt 0:05:23]} a6 {[%emt 0:01:09]} 9. Qc2 {[%emt 0:05:00]} Rb8 {[%emt 0:08:59]} 10. Rd1 {[%emt 0:08:27]} b5 {[%emt 0:07:23]} 11. Ne5 {[%emt 0:12:12]} Nxe5 {[%emt 0:08:58] White is better.} 12. dxe5 {[%emt 0:00:15]} Nd5 {[%emt 0:00:08]} 13. Nc3 {[%emt 0:10:46]} Bb7 {[%emt 0:03:20]} 14. a3 {[%emt 0:12:22] [#] And now e4 would win.} b4 {[%emt 0:09:56]} 15. Nxd5 {[%emt 0:07:39]} exd5 {[%emt 0:00:34]} 16. axb4 {[%emt 0:01:30]} Bxb4 {[%emt 0:01:13]} 17. Bd2 {[%emt 0:02:04]} Qe7 {[%emt 0:09:12]} 18. Bxb4 {[%emt 0:05:01]} Qxb4 {[%emt 0:01:00]} 19. Qxc7 {[%emt 0:01:14]} Rfc8 {[%emt 0:09:05]} 20. Qd6 $36 {[%emt 0:03:52][%mdl 2048] White is in control. White has more active pieces.} Qxb2 {[%emt 0:01:09][%mdl 8192] Black cannot hold the game after this.} (20... Qxd6 $16 21. exd6 Rd8 22. Bxd5 Bxd5) 21. Rdb1 $18 {[%emt 0:06:08]} (21. Bxd5 Bxd5 22. Qxd5 Qxe2 $11) 21... Qc3 {[%emt 0:06:48]} 22. Ra3 {[%emt 0:01:17]} (22. Bxd5 Bxd5 23. Qxb8 (23. Qxd5 Rb5 $14) 23... Be4 $16) 22... Qd2 {[%emt 0:20:38]} (22... Qc2 $142 23. Rab3 Rd8) 23. Rab3 {[%emt 0:01:08]} Qxe2 {[%emt 0:03:21]} 24. Bf1 {[%emt 0:00:23]} (24. Rxb7 $2 Rxb7 25. Rf1 Rbc7 26. Qxd5 Rc5 $19) 24... Qe4 {[%emt 0:00:56]} 25. Rxb7 {[%emt 0:00:28]} Qxb1 {[%emt 0:00:20]} 26. Rxb1 {[%emt 0:00:05]} Rxb1 {[%emt 0:00:03]} 27. e6 {[%emt 0:00:15][%cal Be5e6,Be6e7][%mdl 32] aiming for exf7+.} Rb7 {[%emt 0:01:15]} 28. Bxa6 {[%emt 0:00:09]} Rb1+ {[%emt 0:00:10]} 29. Kg2 {[%emt 0:00:05]} Rf8 {[%emt 0:00:27]} 30. e7 {[%emt 0:00:35][%csl Gd6][%cal Re7f8]} Re8 {[%emt 0:00:15] [#]} 31. Bc8 {[%emt 0:00:14]} Re1 {[%emt 0:00:31]} 32. Bd7 {[%emt 0:01:41]} R1xe7 {[%emt 0:00:14]} 33. Bxe8 {[%emt 0:00:28]} Rxe8 {[%emt 0:00:05]} 34. Qxd5 {[%emt 0:00:43][%mdl 4096] Endgame. KQ-KR} h6 {[%emt 0:00:21]} 35. h4 {[%emt 0:00:29][%cal Bh2h4,Bh4h5][%mdl 32]} Kf8 {[%emt 0:00:53]} 36. h5 {[%emt 0:00:24]} Re6 {[%emt 0:00:14]} 37. Qd3 {[%emt 0:01:45] Qa3+ would now be deadly.} Kg8 {[%emt 0:00:55]} 38. Qd8+ {[%emt 0:00:27]} Kh7 {[%emt 0:00:05]} 39. Qf8 {[%emt 0:00:05]} Rf6 {[%emt 0:00:09]} 40. g4 {[%emt 0:01:12] White mates.} g6 {[%emt 0:02:08]} 41. hxg6+ {[%emt 0:00:06]} Rxg6 {[%emt 0:00:08]} 42. Qxf7+ {[%emt 0:00:05]} Rg7 {[%emt 0:00:03]} 43. Qf5+ {[%emt 0:00:04]} Kh8 {[%emt 0:00:08]} 44. Kh3 {[%emt 0:00:10]} Rg5 {[%emt 0:00:09]} 45. Qf6+ {[%emt 0:00:08]} Kh7 {[%emt 0:00:05]} 46. Kh4 {[%emt 0:00:09]} Rg6 {[%emt 0:00:10]} 47. Qf7+ {[%emt 0:00:11]} Rg7 {[%emt 0:00:05]} 48. Qf5+ {[%emt 0:00:04]} Kh8 {[%emt 0:00:11]} 49. Kh5 {[%emt 0:00:27]} Rf7 {[%emt 0:00:31]} 50. Qe5+ {[%emt 0:00:04]} Kh7 {[%emt 0:00:05]} 51. Qe4+ {[%emt 0:00:06]} Kh8 {[%emt 0:00:18]} 52. Qe8+ {[%emt 0:00:05]} Kg7 {[%emt 0:00:05]} 53. Qxf7+ {[%emt 0:00:03] Weighted Error Value: White=0.09 (flawless) /Black=0.70.  Loses game:     	---       	Black=1      Mistake:       	---       	Black=1      Inaccurate:     	---       	Black=1      OK:         	White=7     	Black=5      Best:        	White=1     	Black=1} 1-0

[Event "VIII Open Semana Santa 2024"]
[Site "San Vicente del Raspeig"]
[Date "2024.03.27"]
[Round "1.10"]
[White "Hernandez Tellez, Claudia"]
[Black "Bora, Safal"]
[Result "0-1"]
[ECO "C07"]
[WhiteElo "2059"]
[BlackElo "2490"]
[Annotator "TA"]
[PlyCount "110"]
[EventDate "2024.03.27"]
[EventType "swiss"]
[EventCountry "ESP"]
[SourceTitle "playchess.com"]
[Source "ChessBase"]
[SourceQuality "1"]
[TimeControl "5400+30"]

{[%evp 22,110,25,17,24,27,25,0,24,2,22,1,15,-11,-14,-12,-18,-14,-12,-10,-11,0,0,-6,-8,0,0,0,0,0,0,0,0,0,0,0,0,0,0,0,0,-3,0,0,0,0,0,0,0,-7,-7,-7,-8,-7,-16,-93,-85,-84,-91,-93,-60,-75,-75,-75,-70,-116,-109,-117,-119,-119,-118,-117,-118,-129,-118,-107,-107,-130,-130,-127,-128,-148,-135,-135,-109,-370,-378,-4133,-4133,-29998,-29999]} 1. e4 {[%emt 0:00:03]} e6 {[%emt 0:00:24]} 2. d4 {[%emt 0:00:12]} d5 {[%emt 0:00:06]} 3. Nd2 {[%emt 0:00:14]} c5 {[%emt 0:00:27]} 4. exd5 {[%emt 0:00:34]} Qxd5 {[%emt 0:00:10]} 5. Ngf3 {[%emt 0:00:17]} cxd4 {[%emt 0:00:13]} 6. Bc4 {[%emt 0:00:22]} Qd6 {[%emt 0:00:22]} 7. O-O {[%emt 0:00:30]} Nf6 {[%emt 0:00:39]} 8. Nb3 {[%emt 0:01:04]} Nc6 {[%emt 0:00:17]} 9. Nbxd4 {[%emt 0:05:54]} Nxd4 {[%emt 0:01:00]} 10. Nxd4 {[%emt 0:00:38]} Be7 {[%emt 0:00:34]} 11. c3 {[%emt 0:01:22]} O-O {[%emt 0:01:09]} 12. Qe2 {[%emt 0:02:21]} b6 {[%emt 0:08:06]} 13. Qf3 {[%emt 0:14:40]} Bd7 {[%emt 0:02:07]} 14. Rd1 {[%emt 0:03:50][%cal Od4e6]} Qc7 {[%emt 0:02:44] The position is equal.} 15. Bd3 {[%emt 0:06:56]} Rad8 {[%emt 0:11:35]} 16. Bg5 {[%emt 0:06:23]} Rfe8 {[%emt 0:06:03][%cal Bf8e8,Be8e7,Be7c7][%mdl 32]} 17. Qg3 {[%emt 0:04:01]} Qxg3 {[%emt 0:03:08]} 18. hxg3 {[%emt 0:00:06]} h6 {[%emt 0:01:52]} 19. Bxf6 {[%emt 0:03:26]} Bxf6 {[%emt 0:01:41]} 20. Nb5 {[%emt 0:02:10][%cal Bd4b5,Bb5d6,Bd6c4][%mdl 32]} a5 {[%emt 0:17:08]} 21. Nd6 {[%emt 0:06:58]} Re7 {[%emt 0:00:29]} 22. Nc4 {[%emt 0:10:48]} Bb5 {[%emt 0:06:05] Threatens to win with ...Red7.} 23. a4 {[%emt 0:04:05]} Ba6 {[%emt 0:02:40] A strong pair of Bishops.} 24. Bf1 {[%emt 0:01:49]} Rb8 {[%emt 0:10:05]} 25. Rd6 {[%emt 0:03:36]} Bxc4 {[%emt 0:03:38]} 26. Bxc4 {[%emt 0:00:07]} Rc7 {[%emt 0:00:05]} 27. Bb5 {[%emt 0:00:49]} Be7 {[%emt 0:01:19]} 28. Rd3 {[%emt 0:00:35]} h5 {[%emt 0:20:24]} 29. Rad1 {[%emt 0:01:09]} g6 {[%emt 0:00:00]} 30. Kf1 {[%emt 0:00:39]} Kg7 {[%emt 0:00:00]} 31. Ke2 {[%emt 0:01:05]} Rc5 {[%emt 0:01:30]} 32. Rd7 {[%emt 0:07:05]} Re5+ {[%emt 0:00:00]} 33. Kf1 {[%emt 0:00:07]} Bc5 {[%emt 0:00:00]} 34. Bd3 {[%emt 0:01:46]} Rh8 {[%emt 0:00:00]} 35. Re1 {[%emt 0:00:48]} Rxe1+ {[%emt 0:00:00]} 36. Kxe1 $11 {[%emt 0:00:02][%mdl 4096] Endgame. KRB-KRB} h4 {[%emt 0:00:00]} 37. gxh4 {[%emt 0:03:43]} Rxh4 {[%emt 0:00:00]} 38. Ke2 {[%emt 0:00:16]} (38. b3 $11 {remains equal.}) 38... Rxa4 $17 {[%emt 0:00:00] ...Ra2 would now be deadly.} 39. Bb5 {[%emt 0:01:45]} Ra1 {[%emt 0:00:00]} 40. Rd2 {[%emt 0:03:21]} e5 {[%emt 0:00:00]} 41. Kd3 {[%emt 0:00:16]} f5 {[%emt 0:00:00] Black is more active.} 42. f3 {[%emt 0:00:25]} Kf6 {[%emt 0:00:00]} 43. Bc6 {[%emt 0:01:02]} ({White should try} 43. Re2 $15) 43... Kg5 {[%emt 0:00:00]} 44. Kc4 {[%emt 0:02:11]} Kf4 {[%emt 0:00:00]} 45. Re2 {[%emt 0:00:29]} Rd1 {[%emt 0:00:00]} 46. g3+ {[%emt 0:01:26]} Kxg3 {[%emt 0:00:00]} 47. Rxe5 {[%emt 0:00:05]} Rd6 {[%emt 0:00:00]} 48. Bb7 {[%emt 0:00:38]} Kf4 {[%emt 0:00:00]} 49. Re8 {[%emt 0:00:14]} Rd2 {[%emt 0:00:00]} 50. b3 {[%emt 0:01:19]} g5 {[%emt 0:00:00]} 51. Rg8 {[%emt 0:00:33]} Rc2 {[%emt 0:03:30]} 52. Kd3 {[%emt 0:00:19]} Rf2 {[%emt 0:00:17]} 53. Rg7 $2 {[%emt 0:00:14][%mdl 8192] [#]} (53. Bc6 $17) 53... b5 $1 $19 {[%emt 0:01:34] ( -> ...Be3)} 54. Rf7 $2 {[%emt 0:01:15] [#]} (54. Bc6 Be3 55. Bxb5) 54... Be3 $1 {[%emt 0:00:25][%csl Ge3][%cal Rf2d2]} 55. c4 {[%emt 0:00:06]} Rd2+ {[%emt 0:00:09] Weighted Error Value: White=0.46/Black=0.03 (flawless) .  Loses game:     	White=1     	---        Mistake:       	White=3     	---        Inaccurate:     	White=2     	Black=1      OK:         	White=21    	Black=23     Best:        	---       	Black=1      Strong:       	---       	Black=2} 0-1